fUSD/lending_fUSD_20250514
["ID","MTS","AMOUNT","RATE_DAILY","PERIOD"]
[361033844,1747209146336,-480.02,0.00015616,2]
[361033845,1747209146346,-616.03,0.00015616,2]
[361033846,1747209146356,-585.46,0.00015616,2]
[361033847,1747209146366,-400.0,0.00015616,2]
[361033848,1747209146380,-1727.32,0.00015616,2]
[361033849,1747209146389,-1174.5,0.00015616,2]
[361033850,1747209146399,-824.11,0.00015616,2]
[361033851,1747209146411,-400.0,0.00015616,2]
[361033852,1747209146420,-901.12,0.00015616,2]
[361033853,1747209146430,-400.0,0.00015616,2]
[361033854,1747209146440,-195.279798,0.00015616,2]
[361033855,1747209146451,-195.279798,0.00015616,2]
[361033856,1747209146461,-195.279798,0.00015616,2]
[361033857,1747209146470,-195.279798,0.00015616,2]
[361033858,1747209146480,-195.279798,0.00015616,2]
[361033859,1747209146490,-409.55735305,0.00015616,2]
[361033860,1747209146500,-195.279798,0.00015616,2]
[361033861,1747209146509,-195.279798,0.00015616,2]
[361033862,1747209146519,-465.08,0.00015616,2]
[361033863,1747209146529,-195.279798,0.00015616,2]
[361033864,1747209146540,-195.279798,0.00015616,2]
[361033865,1747209146549,-195.279797,0.00015616,2]
[361033866,1747209146563,-400.0,0.00015616,2]
[361033867,1747209146592,-1658.78,0.00015616,2]
[361033868,1747209146624,-975.74,0.00015616,2]
[361033869,1747209146662,-700.75,0.00015616,2]
[361033870,1747209146704,-2190.3,0.00015616,2]
[361033871,1747209146746,-803.12,0.00015616,2]
[361033872,1747209146774,-154.91617554,0.00015616,2]
[361033873,1747209146784,-1386.9,0.00015616,2]
[361033874,1747209146794,-2230.886208,0.00015616,2]
[361033875,1747209146804,-2230.886208,0.00015616,2]
[361033876,1747209146814,-2230.886208,0.00015616,2]
[361033877,1747209146825,-2230.886208,0.00015616,2]
[361033878,1747209146835,-2230.886208,0.00015616,2]
[361033879,1747209146844,-400.0,0.00015616,2]
[361033880,1747209146853,-183.963342,0.00015616,2]
[361033881,1747209146863,-183.963342,0.00015616,2]
[361033882,1747209146872,-183.963342,0.00015616,2]
[361033883,1747209146882,-183.963342,0.00015616,2]
[361033884,1747209146892,-183.963342,0.00015616,2]
[361033885,1747209146902,-151.0,0.00015616,2]
[361033886,1747209146911,-485.56,0.00015616,2]
[361033887,1747209146921,-151.0,0.00015616,2]
[361033888,1747209146930,-2230.886208,0.00015616,2]
[361033889,1747209146940,-151.0,0.00015616,2]
[361033890,1747209146950,-2230.886208,0.00015616,2]
[361033891,1747209146960,-151.0,0.00015616,2]
[361033892,1747209146969,-1242.02,0.00015616,2]
[361033893,1747209146978,-2230.886208,0.00015616,2]
[361033894,1747209146988,-2230.886208,0.00015616,2]
[361033895,1747209146998,-790.06,0.00015616,2]
[361033896,1747209147008,-151.0,0.00015616,2]
[361033897,1747209147018,-2230.886201,0.00015616,2]
[361033898,1747209147028,-183.963342,0.00015616,2]
[361033899,1747209147038,-183.963342,0.00015616,2]
[361033900,1747209147048,-183.963342,0.00015616,2]
[361033901,1747209147058,-1050.16,0.00015616,2]
[361033902,1747209147068,-183.963342,0.00015616,2]
[361033903,1747209147078,-400.0,0.00015616,2]
[361033904,1747209147087,-151.0,0.00015616,2]
[361033905,1747209147096,-241.883144,0.00015616,2]
[361033906,1747209147106,-21204.56,0.00015616,2]
[361033907,1747209147115,-183.96335,0.00015616,2]
[361033908,1747209147125,-1025.65,0.00015616,2]
[361033909,1747209147134,-400.0,0.00015616,2]
[361033910,1747209147143,-462.47,0.00015616,2]
[361033911,1747209147152,-173.76227,0.00015616,2]
[361033912,1747209147161,-173.76227,0.00015616,2]
[361033913,1747209147171,-173.76227,0.00015616,2]
[361033914,1747209147180,-489.88,0.00015616,2]
[361033915,1747209147190,-173.76227,0.00015616,2]
[361033916,1747209147200,-173.76227,0.00015616,2]
[361033917,1747209147210,-1903.72,0.00015616,2]
[361033918,1747209147220,-173.76227,0.00015616,2]
[361033919,1747209147230,-903.36,0.00015616,2]
[361033920,1747209147240,-173.76227,0.00015616,2]
[361033921,1747209147250,-400.0,0.00015616,2]
[361033922,1747209147260,-173.76227,0.00015616,2]
[361033923,1747209147270,-173.76227,0.00015616,2]
[361033924,1747209147279,-620.740344,0.00015616,2]
[361033925,1747209147288,-173.762277,0.00015616,2]
[361033926,1747209147297,-433.44,0.00015616,2]
[361033927,1747209147306,-620.740344,0.00015616,2]
[361033928,1747209147315,-620.740344,0.00015616,2]
[361033929,1747209147324,-460.59,0.00015616,2]
[361033930,1747209147332,-620.740344,0.00015616,2]
[361033931,1747209147341,-620.740344,0.00015616,2]
[361033932,1747209147350,-620.740344,0.00015616,2]
[361033933,1747209147359,-620.740344,0.00015616,2]
[361033934,1747209147369,-1352.46,0.00015616,2]
[361033935,1747209147380,-620.740344,0.00015616,2]
[361033936,1747209147388,-620.740344,0.00015616,2]
[361033937,1747209147398,-620.740346,0.00015616,2]
[361033938,1747209147407,-2297.07,0.00015616,2]
[361033939,1747209147418,-5802.65,0.00015616,2]
[361033940,1747209147428,-713.5,0.00015616,2]
[361033941,1747209147437,-1266.9,0.00015616,2]
[361033942,1747209147448,-1158.53,0.00015616,2]
[361033943,1747209147458,-434.56,0.00015616,2]
[361033944,1747209147467,-1010.68,0.00015616,2]
[361033945,1747209147477,-484.69,0.00015616,2]
[361033946,1747209147486,-1095.0,0.00015616,2]
[361033947,1747209147496,-1932.75,0.00015616,2]
[361033948,1747209147506,-435.72,0.00015616,2]
[361033949,1747209147517,-1315.66,0.00015616,2]
[361033950,1747209147527,-457.59,0.00015616,2]
[361033951,1747209147536,-454.255713,0.00015616,2]
[361033952,1747209147544,-454.255713,0.00015616,2]
[361033953,1747209147553,-454.255713,0.00015616,2]
[361033954,1747209147562,-454.255713,0.00015616,2]
[361033955,1747209147572,-496.1,0.00015616,2]
[361033956,1747209147581,-454.255713,0.00015616,2]
[361033957,1747209147591,-814.19,0.00015616,2]
[361033958,1747209147600,-459.36,0.00015616,2]
[361033959,1747209147610,-5005.62,0.00015616,2]
[361033960,1747209147619,-454.255713,0.00015616,2]
[361033961,1747209147628,-615.67,0.00015616,2]
[361033962,1747209147637,-454.255713,0.00015616,2]
[361033963,1747209147647,-454.255713,0.00015616,2]
[361033964,1747209147656,-4200.08,0.00015616,2]
[361033965,1747209147666,-454.255713,0.00015616,2]
[361033966,1747209147676,-454.255714,0.00015616,2]
[361033967,1747209147685,-162.219803,0.00015616,2]
[361033968,1747209147694,-402.79,0.00015616,2]
[361033969,1747209147703,-400.0,0.00015616,2]
[361033970,1747209147712,-1129.39,0.00015616,2]
[361033971,1747209147722,-695.95,0.00015616,2]
[361033972,1747209147730,-558.35,0.00015616,2]
[361033973,1747209147739,-900.7,0.00015616,2]
[361033974,1747209147749,-2565.38,0.00015616,2]
[361033975,1747209147758,-1206.83,0.00015616,2]
[361033976,1747209147769,-400.0,0.00015616,2]
[361033977,1747209147778,-905.95,0.00015616,2]
[361033978,1747209147787,-461.69,0.00015616,2]
[361033979,1747209147796,-445.07199523,0.00015616,2]
[361033980,1747209147806,-704.13,0.00015616,2]
[361033981,1747209147814,-151.0,0.00015616,2]
[361033982,1747209147824,-151.0,0.00015616,2]
[361033983,1747209147833,-151.0,0.00015616,2]
[361033984,1747209147841,-400.0,0.00015616,2]
[361033985,1747209147851,-1026.15,0.00015616,2]
[361033986,1747209147860,-926.7,0.00015616,2]
[361033987,1747209147869,-720.88,0.00015616,2]
[361033988,1747209147878,-828.79,0.00015616,2]
[361033989,1747209147887,-696.91,0.00015616,2]
[361033990,1747209147895,-2110.67,0.00015616,2]
[361033991,1747209147904,-540.58,0.00015616,2]
[361033992,1747209147915,-1784.16,0.00015616,2]
[361033993,1747209147924,-1232.7,0.00015616,2]
[361033994,1747209147933,-400.0,0.00015616,2]
[361033995,1747209147942,-400.0,0.00015616,2]
[361033996,1747209147951,-1246.63,0.00015616,2]
[361033997,1747209147959,-1031.46,0.00015616,2]
[361033998,1747209147969,-915.16,0.00015616,2]
[361033999,1747209147978,-614.08,0.00015616,2]
[361034000,1747209147987,-400.0,0.00015616,2]
[361034001,1747209147995,-415.13,0.00015616,2]
[361034002,1747209148005,-8117.6,0.00015616,2]
[361034003,1747209148015,-400.0,0.00015616,2]
[361034004,1747209148023,-1273.28,0.00015616,2]
[361034005,1747209148033,-354.69932842,0.00015616,2]
[361034006,1747209148042,-400.0,0.00015616,2]
[361034007,1747209148052,-2424.58,0.00015616,2]
[361034008,1747209148061,-447.54,0.00015616,2]
[361034009,1747209148071,-400.0,0.00015616,2]
[361034010,1747209148081,-723.09,0.00015616,2]
[361034011,1747209148091,-1958.39,0.00015616,2]
[361034012,1747209148101,-422.1,0.00015616,2]
[361034013,1747209148110,-2526.26,0.00015616,2]
[361034014,1747209148119,-2914.11,0.00015616,2]
[361034015,1747209148129,-803.6,0.00015616,2]
[361034016,1747209148139,-8091.9,0.00015616,2]
[361034017,1747209148148,-599.26,0.00015616,2]
[361034018,1747209148158,-905.05,0.00015616,2]
[361034019,1747209148168,-805.31,0.00015616,2]
[361034020,1747209148178,-1722.0,0.00015616,2]
[361034021,1747209148189,-400.0,0.00015616,2]
[361034022,1747209148199,-981.33,0.00015616,2]
[361034023,1747209148209,-861.582106,0.00015889,2]
[361034024,1747209148219,-861.582106,0.00015889,2]
[361034025,1747209148228,-203.093842,0.00015889,2]
[361034026,1747209148238,-203.093842,0.00015889,2]
[361034027,1747209148248,-203.093842,0.00015889,2]
[361034028,1747209148258,-203.093842,0.00015889,2]
[361034029,1747209148269,-203.093842,0.00015889,2]
[361034030,1747209148279,-203.093842,0.00015889,2]
[361034031,1747209148289,-203.093842,0.00015889,2]
[361034032,1747209148299,-203.093842,0.00015889,2]
[361034033,1747209148309,-203.093842,0.00015889,2]
[361034034,1747209148319,-203.093842,0.00015889,2]
[361034035,1747209148329,-203.093842,0.00015889,2]
[361034036,1747209148338,-203.093845,0.00015889,2]
[361034037,1747209148348,-151.0,0.00015889,2]
[361034038,1747209148357,-151.0,0.00015889,2]
[361034039,1747209148367,-151.0,0.00015889,2]
[361034040,1747209148380,-151.0,0.00015889,2]
[361034041,1747209148389,-151.0,0.00015889,2]
[361034042,1747209148399,-151.0,0.00015889,2]
[361034043,1747209148408,-242.863188,0.00015889,2]
[361034044,1747209148418,-400.0,0.00015889,2]
[361034045,1747209148428,-528.13,0.00015889,2]
[361034046,1747209148437,-816.27,0.00015889,2]
[361034047,1747209148448,-679.38,0.00015889,2]
[361034048,1747209148457,-694.603253,0.00015889,2]
[361034049,1747209148466,-694.603253,0.00015889,2]
[361034050,1747209148476,-151.0,0.00015889,2]
[361034051,1747209148486,-151.0,0.00015889,2]
[361034052,1747209148496,-151.0,0.00015889,2]
[361034053,1747209148506,-151.0,0.00015889,2]
[361034054,1747209148516,-151.0,0.00015889,2]
[361034055,1747209148526,-209.32473,0.00015889,2]
[361034056,1747209148536,-209.32473,0.00015889,2]
[361034057,1747209148546,-209.32473,0.00015889,2]
[361034058,1747209148555,-209.32473,0.00015889,2]
[361034059,1747209148566,-209.32473,0.00015889,2]
[361034060,1747209148576,-209.32473,0.00015889,2]
[361034061,1747209148586,-209.32473,0.00015889,2]
[361034062,1747209148595,-209.32473,0.00015889,2]
[361034063,1747209148605,-209.32473,0.00015889,2]
[361034064,1747209148615,-209.324734,0.00015889,2]
[361034065,1747209148625,-151.253851,0.00015889,2]
[361034066,1747209148636,-151.253851,0.00015889,2]
[361034067,1747209148646,-151.253851,0.00015889,2]
[361034068,1747209148656,-151.253851,0.00015889,2]
[361034069,1747209148667,-151.253851,0.00015889,2]
[361034070,1747209148679,-151.253851,0.00015889,2]
[361034071,1747209148690,-151.253851,0.00015889,2]
[361034072,1747209148701,-151.253851,0.00015889,2]
[361034073,1747209148711,-151.253851,0.00015889,2]
[361034074,1747209148721,-151.253854,0.00015889,2]
[361034075,1747209148731,-4144.998466,0.00015889,2]
[361034076,1747209148742,-4144.998466,0.00015889,2]
[361034077,1747209148752,-4144.998466,0.00015889,2]
[361034078,1747209148763,-4144.998466,0.00015889,2]
[361034079,1747209148773,-4144.998466,0.00015889,2]
[361034080,1747209148784,-4144.998466,0.00015889,2]
[361034081,1747209148794,-4144.998466,0.00015889,2]
[361034082,1747209148803,-4144.998466,0.00015889,2]
[361034083,1747209148814,-4144.998466,0.00015889,2]
[361034084,1747209148824,-4144.998467,0.00015889,2]
[361034085,1747209148834,-299.374473,0.00015889,2]
[361034086,1747209148843,-299.374473,0.00015889,2]
[361034087,1747209148854,-299.374473,0.00015889,2]
[361034088,1747209148864,-299.374473,0.00015889,2]
[361034089,1747209148875,-299.374473,0.00015889,2]
[361034090,1747209148884,-299.374473,0.00015889,2]
[361034091,1747209148894,-299.374473,0.00015889,2]
[361034092,1747209148904,-299.374473,0.00015889,2]
[361034093,1747209148913,-299.374473,0.00015889,2]
[361034094,1747209148923,-299.374476,0.00015889,2]
[361034095,1747209148932,-151.0,0.00015889,2]
[361034096,1747209148942,-151.0,0.00015889,2]
[361034097,1747209148951,-151.0,0.00015889,2]
[361034098,1747209148961,-206.290275,0.00015889,2]
[361034099,1747209148971,-151.0,0.00015889,2]
[361034100,1747209148981,-151.0,0.00015889,2]
[361034101,1747209148995,-151.0,0.00015889,2]
[361034102,1747209149006,-151.0,0.00015889,2]
[361034103,1747209149017,-151.0,0.00015889,2]
[361034104,1747209149027,-400.0,0.0001589,2]
[361034105,1747209149037,-598.264816,0.0001589,2]
[361034106,1747209149047,-151.0,0.0001589,2]
[361034107,1747209149057,-703.18,0.0001589,2]
[361034108,1747209149067,-151.0,0.0001589,2]
[361034109,1747209149076,-151.0,0.0001589,2]
[361034110,1747209149087,-151.0,0.0001589,2]
[361034111,1747209149098,-151.0,0.0001589,2]
[361034112,1747209149109,-151.0,0.0001589,2]
[361034113,1747209149119,-596.11,0.0001589,2]
[361034114,1747209149130,-781.536897,0.0001589,2]
[361034115,1747209149140,-781.536897,0.0001589,2]
[361034116,1747209149150,-781.536897,0.0001589,2]
[361034117,1747209149160,-781.536897,0.0001589,2]
[361034118,1747209149170,-781.536897,0.0001589,2]
[361034119,1747209149180,-781.536888,0.0001589,2]
[361034120,1747209149190,-151.0,0.0001589,2]
[361034121,1747209149201,-151.0,0.0001589,2]
[361034122,1747209149211,-151.0,0.0001589,2]
[361034123,1747209149222,-151.0,0.0001589,2]
[361034124,1747209149233,-151.0,0.0001589,2]
[361034125,1747209149244,-151.0,0.0001589,2]
[361034126,1747209149254,-163.621222,0.0001589,2]
[361034127,1747209149266,-400.0,0.0001589,2]
[361034128,1747209149276,-737.65,0.0001589,2]
[361034129,1747209149287,-711.57,0.0001589,2]
[361034130,1747209149298,-672.9,0.0001589,2]
[361034131,1747209149308,-460.32,0.0001589,2]
[361034132,1747209149319,-409.84174912,0.0001589,2]
[361034133,1747209149330,-330.202027,0.0001589,2]
[361034134,1747209149340,-330.202027,0.0001589,2]
[361034135,1747209149351,-174.620918,0.0001589,2]
[361034136,1747209149362,-330.202027,0.0001589,2]
[361034137,1747209149374,-174.620918,0.0001589,2]
[361034138,1747209149387,-330.202027,0.0001589,2]
[361034139,1747209149399,-174.620918,0.0001589,2]
[361034140,1747209149409,-330.202027,0.0001589,2]
[361034141,1747209149423,-174.620918,0.0001589,2]
[361034142,1747209149433,-174.620918,0.0001589,2]
[361034143,1747209149443,-330.202027,0.0001589,2]
[361034144,1747209149455,-330.202027,0.0001589,2]
[361034145,1747209149465,-174.620918,0.0001589,2]
[361034146,1747209149476,-330.202027,0.0001589,2]
[361034147,1747209149486,-174.620918,0.0001589,2]
[361034148,1747209149497,-330.202027,0.0001589,2]
[361034149,1747209149508,-174.620918,0.0001589,2]
[361034150,1747209149524,-330.202022,0.0001589,2]
[361034151,1747209149535,-174.620918,0.0001589,2]
[361034152,1747209149547,-174.620921,0.0001589,2]
[361034153,1747209149558,-544.03487529,0.0001589,2]
[361034154,1747209149569,-939.06,0.0001589,2]
[361034155,1747209149580,-436.72,0.0001589,2]
[361034156,1747209149591,-400.0,0.0001589,2]
[361034157,1747209149602,-1236.03,0.0001589,2]
[361034158,1747209149612,-882.64,0.0001589,2]
[361034159,1747209149622,-400.0,0.0001589,2]
[361034160,1747209149634,-483.18,0.0001589,2]
[361034161,1747209149646,-159.653133,0.0001589,2]
[361034162,1747209149656,-159.653133,0.0001589,2]
[361034163,1747209149667,-159.653133,0.0001589,2]
[361034164,1747209149677,-159.653133,0.0001589,2]
[361034165,1747209149687,-159.653133,0.0001589,2]
[361034166,1747209149698,-159.653133,0.0001589,2]
[361034167,1747209149708,-159.653133,0.0001589,2]
[361034168,1747209149717,-159.653133,0.0001589,2]
[361034169,1747209149727,-159.653133,0.0001589,2]
[361034170,1747209149737,-159.653128,0.0001589,2]
[361034171,1747209149748,-400.0,0.0001589,2]
[361034172,1747209149759,-400.0,0.0001589,2]
[361034173,1747209149772,-479.52,0.0001589,2]
[361034174,1747209149783,-634.51,0.0001589,2]
[361034175,1747209149794,-435.37,0.0001589,2]
[361034176,1747209149807,-596.16,0.0001589,2]
[361034177,1747209149818,-494.69,0.0001589,2]
[361034178,1747209149828,-400.0,0.0001589,2]
[361034179,1747209149838,-400.0,0.0001589,2]
[361034180,1747209149849,-599.12,0.0001589,2]
[361034181,1747209149860,-400.0,0.0001589,2]
[361034182,1747209149871,-1062.41,0.0001589,2]
[361034183,1747209149882,-400.0,0.0001589,2]
[361034184,1747209149893,-1179.96,0.0001589,2]
[361034185,1747209149904,-450.9,0.0001589,2]
[361034186,1747209149915,-884.53,0.0001589,2]
[361034187,1747209149926,-1027.84,0.0001589,2]
[361034188,1747209149937,-1395.43,0.0001589,2]
[361034189,1747209149947,-543.81,0.0001589,2]
[361034190,1747209149958,-688.09,0.0001589,2]
[361034191,1747209149970,-540.49,0.0001589,2]
[361034192,1747209149980,-545.09,0.0001589,2]
[361034193,1747209149991,-1082.93,0.0001589,2]
[361034194,1747209150001,-476.99,0.0001589,2]
[361034195,1747209150012,-502.4,0.0001589,2]
[361034196,1747209150023,-400.0,0.0001589,2]
[361034197,1747209150034,-518.03,0.0001589,2]
[361034198,1747209150044,-400.0,0.0001589,2]
[361034199,1747209150054,-2119.41,0.0001589,2]
[361034200,1747209150064,-270.16300578,0.0001589,2]
[361034201,1747209150074,-528.83,0.0001589,2]
[361034202,1747209150085,-1034.94,0.0001589,2]
[361034203,1747209150095,-521.6,0.0001589,2]
[361034204,1747209150105,-833.6,0.0001589,2]
[361034205,1747209150116,-1089.67,0.0001589,2]
[361034206,1747209150126,-855.81,0.0001589,2]
[361034207,1747209150136,-649.48,0.0001589,2]
[361034208,1747209150146,-662.78,0.0001589,2]
[361034209,1747209150156,-1112.52,0.0001589,2]
[361034210,1747209150167,-450.15,0.0001589,2]
[361034211,1747209150177,-670.7,0.0001589,2]
[361034212,1747209150188,-665.82,0.0001589,2]
[361034213,1747209150198,-178.43835528,0.0001589,2]
[361034214,1747209150208,-936.51,0.0001589,2]
[361034215,1747209150219,-1073.27,0.0001589,2]
[361034216,1747209150229,-1216.82,0.0001589,2]
[361034217,1747209150240,-400.0,0.0001589,2]
[361034218,1747209150251,-168.83073097,0.0001589,2]
[361034219,1747209150261,-400.0,0.0001589,2]
[361034220,1747209150274,-909.1,0.0001589,2]
[361034221,1747209150284,-1630.94,0.0001589,2]
[361034222,1747209150500,-400.0,0.0001589,2]
[361034223,1747209150510,-565.83,0.0001589,2]
[361034224,1747209150523,-1329.57,0.0001589,2]
[361034225,1747209150533,-1847.25,0.0001589,2]
[361034226,1747209150544,-400.0,0.0001589,2]
[361034227,1747209150555,-422.51,0.0001589,2]
[361034228,1747209150565,-400.0,0.0001589,2]
[361034229,1747209150575,-876.56,0.0001589,2]
[361034230,1747209150585,-2140.12,0.0001589,2]
[361034231,1747209150595,-571.96,0.0001589,2]
[361034232,1747209150605,-410.56,0.0001589,2]
[361034233,1747209150615,-892.67,0.0001589,2]
[361034234,1747209150625,-310.97054916,0.0001589,2]
[361034235,1747209150635,-402.51949828,0.0001589,2]
[361034236,1747209150646,-1074.21,0.0001589,2]
[361034237,1747209150656,-507.63,0.0001589,2]
[361034238,1747209150666,-2412.67,0.0001589,2]
[361034239,1747209150676,-400.0,0.0001589,2]
[361034240,1747209150686,-1071.37,0.0001589,2]
[361034241,1747209150697,-585.74,0.0001589,2]
[361034242,1747209150708,-400.0,0.0001589,2]
[361034243,1747209150719,-151.0,0.0001589,2]
[361034244,1747209150729,-151.0,0.0001589,2]
[361034245,1747209150739,-151.0,0.0001589,2]
[361034246,1747209150749,-151.0,0.0001589,2]
[361034247,1747209150759,-151.0,0.0001589,2]
[361034248,1747209150769,-1055.84,0.0001589,2]
[361034249,1747209150778,-1569.68,0.0001589,2]
[361034250,1747209150788,-3342.19,0.0001589,2]
[361034251,1747209150799,-1011.98,0.0001589,2]
[361034252,1747209150810,-437.7,0.0001589,2]
[361034253,1747209150819,-841.38,0.0001589,2]
[361034254,1747209150829,-2138.29,0.0001589,2]
[361034255,1747209150839,-400.03,0.0001589,2]
[361034256,1747209150850,-931.09,0.0001589,2]
[361034257,1747209150860,-799.14,0.0001589,2]
[361034258,1747209150870,-561.99,0.0001589,2]
[361034259,1747209150880,-447.86,0.0001589,2]
[361034260,1747209150890,-1791.98,0.0001589,2]
[361034261,1747209150899,-1506.45,0.0001589,2]
[361034262,1747209150908,-1248.25,0.0001589,2]
[361034263,1747209150917,-500.31,0.0001589,2]
[361034264,1747209150927,-400.0,0.0001589,2]
[361034265,1747209150937,-466.29,0.0001589,2]
[361034266,1747209150947,-559.56,0.0001589,2]
[361034267,1747209150957,-499.83,0.0001589,2]
[361034268,1747209150967,-347.4174457,0.0001589,2]
[361034269,1747209150976,-648.49,0.0001589,2]
[361034270,1747209150986,-263.06,0.0001589,2]
[361034271,1747209150996,-735.21,0.0001589,2]
[361034272,1747209151006,-2396.6,0.0001589,2]
[361034273,1747209151015,-488.25,0.0001589,2]
[361034274,1747209151025,-686.74,0.0001589,2]
[361034275,1747209151035,-663.93,0.0001589,2]
[361034276,1747209151046,-400.0,0.0001589,2]
[361034277,1747209151056,-765.05,0.0001589,2]
[361034278,1747209151066,-400.0,0.0001589,2]
[361034279,1747209151076,-837.82,0.0001589,2]
[361034280,1747209151086,-846.38,0.0001589,2]
[361034281,1747209151096,-713.16,0.0001589,2]
[361034282,1747209151105,-544.35,0.0001589,2]
[361034283,1747209151115,-1073.49,0.0001589,2]
[361034284,1747209151124,-452.73,0.0001589,2]
[361034285,1747209151134,-400.0,0.0001589,2]
[361034286,1747209151143,-610.73,0.0001589,2]
[361034287,1747209151153,-1075.48,0.0001589,2]
[361034288,1747209151163,-400.0,0.0001589,2]
[361034289,1747209151172,-442.29,0.0001589,2]
[361034290,1747209151182,-199.36506215,0.0001589,2]
[361034291,1747209151192,-1807.34,0.0001589,2]
[361034292,1747209151201,-561.75,0.0001589,2]
[361034293,1747209151211,-546.56,0.0001589,2]
[361034294,1747209151220,-504.1,0.0001589,2]
[361034295,1747209151230,-690.43,0.0001589,2]
[361034296,1747209151239,-400.0,0.0001589,2]
[361034297,1747209151249,-416.24,0.0001589,2]
[361034298,1747209151259,-402.6,0.0001589,2]
[361034299,1747209151269,-525.36020938,0.0001589,2]
[361034300,1747209151279,-400.0,0.0001589,2]
[361034301,1747209151289,-1113.76,0.0001589,2]
[361034302,1747209151299,-1405.65,0.0001589,2]
[361034303,1747209151309,-468.31,0.0001589,2]
[361034304,1747209151319,-1001.39,0.0001589,2]
[361034305,1747209151328,-665.02,0.0001589,2]
[361034306,1747209151338,-777.85,0.0001589,2]
[361034307,1747209151347,-2209.78,0.0001589,2]
[361034308,1747209151357,-542.27,0.0001589,2]
[361034309,1747209151367,-400.0,0.0001589,2]
[361034310,1747209151379,-400.0,0.0001589,2]
[361034311,1747209151389,-1048.34,0.0001589,2]
[361034312,1747209151399,-1451.38,0.0001589,2]
[361034313,1747209151410,-499.04744878,0.0001589,2]
[361034314,1747209151421,-619.23,0.0001589,2]
[361034315,1747209151430,-2336.68,0.0001589,2]
[361034316,1747209151440,-845.06,0.0001589,2]
[361034317,1747209151450,-441.20206468,0.0001589,2]
[361034318,1747209151460,-1320.89,0.0001589,2]
[361034319,1747209151469,-666.66,0.0001589,2]
[361034320,1747209151479,-663.81,0.0001589,2]
[361034321,1747209151489,-400.0,0.0001589,2]
[361034322,1747209151499,-400.0,0.0001589,2]
[361034323,1747209151510,-541.3,0.0001589,2]
[361034324,1747209151522,-400.0,0.0001589,2]
[361034325,1747209151533,-547.41117785,0.0001589,2]
[361034326,1747209151542,-1134.08,0.0001589,2]
[361034327,1747209151552,-445.33,0.0001589,2]
[361034328,1747209151562,-1257.84,0.0001589,2]
[361034329,1747209151572,-575.36,0.0001589,2]
[361034330,1747209151582,-1007.26,0.0001589,2]
[361034331,1747209151592,-400.0,0.0001589,2]
[361034332,1747209151602,-659.39,0.0001589,2]
[361034333,1747209151612,-1204.75,0.0001589,2]
[361034334,1747209151622,-400.98,0.0001589,2]
[361034335,1747209151632,-906.35,0.0001589,2]
[361034336,1747209151642,-1524.33,0.0001589,2]
[361034337,1747209151666,-466.88,0.0001589,2]
[361034338,1747209151694,-774.55,0.0001589,2]
[361034339,1747209151717,-385.21127816,0.0001589,2]
[361034340,1747209151741,-873.16,0.0001589,2]
[361034341,1747209151765,-4342.01,0.0001589,2]
[361034342,1747209151809,-523.37,0.0001589,2]
[361034343,1747209151848,-352.56,0.0001589,2]